bitfinex/quotes_ETHUSD_20240612
["timestamp","ask_amount","ask_price","bid_price","bid_amount"]
[1718217662771,0.0418649,3595.6,3595.5,1.43344514]
[1718217663009,0.0418649,3595.6,3595.5,1.58235191]
[1718217663311,0.24691,3597.0,3595.5,1.58235191]
[1718217663312,2.78037,3596.7,3595.5,1.58235191]
[1718217663483,2.78037,3596.7,3595.7,1.43344514]
[1718217663809,2.78058,3596.4,3595.7,1.43344514]
[1718217663983,2.78058,3596.4,3594.5,3.0]
[1718217663984,2.78096,3595.9,3594.7,2.3853]
[1718217664182,2.78096,3595.9,3594.9,1.43344514]
[1718217664913,2.78138,3595.4,3594.9,1.43344514]
[1718217665208,0.04083505,3595.3,3594.9,1.43344514]
[1718217666216,2.7815,3595.2,3594.9,1.43344514]
[1718217666373,0.04083505,3595.3,3595.0,1.43344514]
[1718217666574,0.04029558,3595.1,3595.0,1.43344514]
[1718217666769,2.7809,3596.0,3595.0,1.57678965]
[1718217667089,3.04077832,3595.9,3595.1,1.43344514]
[1718217667297,0.04077832,3595.9,3595.1,1.43344514]
[1718217667485,2.78066,3596.3,3595.1,1.43344514]
[1718217667686,2.7809,3596.0,3595.1,1.43344514]
[1718217667909,0.04072411,3595.9,3595.1,1.43344514]
[1718217668418,2.78105,3595.8,3595.1,1.43344514]
[1718217668579,2.78125,3595.5,3595.1,1.43344514]
[1718217668920,0.04035717,3595.4,3595.1,1.43344514]
[1718217669079,2.7807,3596.3,3595.2,1.43344514]
[1718217669278,0.04081107,3596.2,3595.3,1.43344514]
[1718217669718,3.0,3596.7,3595.3,1.43344514]
[1718217669933,0.578032,3596.5,3595.3,1.43344514]
[1718217670135,2.78092,3596.0,3595.3,3.10844514]
[1718217670502,0.04035512,3595.9,3595.3,3.10844514]
[1718217671116,2.78062,3596.4,3595.3,3.10844514]
[1718217671342,0.04069273,3596.3,3595.7,1.675]
[1718217671502,0.04069273,3596.3,3595.8,1.43344514]
[1718217671699,5.36529806,3597.6,3595.9,3.10844514]
[1718217671940,0.04103299,3596.9,3596.2,3.10844514]
[1718217672103,0.04103299,3596.9,3596.4,1.675]
[1718217672439,2.77938,3598.0,3596.6,1.675]
[1718217672638,0.03964815,3596.8,3596.7,2.28059059]
[1718217672798,2.77938,3598.0,3596.7,3.71403573]
[1718217672997,2.77938,3598.0,3597.1,1.675]
[1718217673200,2.668,3599.1,3597.8,1.675]
[1718217673201,0.03893847,3597.9,3597.8,1.675]
[1718217673443,0.03893847,3597.9,3597.8,1.43344514]
[1718217673605,2.3762,3599.1,3597.8,1.43344514]
[1718217673805,2.3762,3599.1,3597.9,1.43344514]
[1718217674006,0.54277206,3599.0,3597.9,1.43344514]
[1718217674442,2.77868,3598.9,3597.9,1.43344514]
[1718217674605,2.77868,3598.9,3598.0,0.05548086]
[1718217674807,0.03823878,3598.8,3598.1,1.43344514]
[1718217675331,2.77868,3598.9,3598.1,1.43344514]
[1718217675944,2.2738,3599.7,3598.3,1.675]
[1718217675945,2.77838,3599.3,3598.3,1.675]
[1718217676115,2.77838,3599.3,3598.4,1.43344514]
[1718217676315,0.03846532,3599.2,3598.4,3.10844514]
[1718217677735,0.03846532,3599.2,3598.4,1.43344514]
[1718217677942,2.7788,3598.7,3598.4,1.43344514]
[1718217678356,0.03909177,3598.6,3598.4,1.43344514]
[1718217680043,0.03909177,3598.6,3598.5,1.43344514]
[1718217680411,2.77865,3598.9,3598.5,1.43344514]
[1718217680750,2.77837,3599.3,3598.5,1.43344514]
[1718217680910,0.03906526,3598.8,3598.5,1.43344514]
[1718217681103,2.77867,3598.9,3598.5,1.43344514]
[1718217681342,0.03906526,3598.8,3598.5,1.43344514]
[1718217681715,2.77855,3599.0,3598.5,1.43344514]
[1718217681916,0.0391219,3598.9,3598.5,1.43344514]
[1718217682967,2.77871,3598.8,3598.5,1.43344514]
[1718217683477,0.03870339,3598.7,3598.5,1.43344514]
[1718217683630,5.2738,3599.7,3598.5,1.43344514]
[1718217684031,2.77878,3598.7,3598.5,1.43344514]
[1718217684381,0.03862071,3598.6,3598.5,1.43344514]
[1718217684581,0.03862071,3598.6,3595.8,1.02784412]
[1718217684582,0.32036078,3598.6,3597.3,1.667]
[1718217684864,2.77942,3597.9,3597.5,1.43344514]
[1718217685229,0.03819023,3597.8,3597.5,3.10044514]
[1718217685430,0.03819023,3597.8,3597.5,1.43344514]
[1718217685630,2.77932,3598.0,3597.5,3.10044514]
[1718217685830,0.03813355,3597.7,3597.5,1.43344514]
[1718217686132,0.03807688,3597.6,3597.5,1.43344514]
[1718217686663,2.77957,3597.7,3597.5,1.43344514]
[1718217686865,0.03807688,3597.6,3596.8,4.0241]
[1718217687032,2.7798,3597.4,3596.2,2.3437]
[1718217687232,0.03764253,3597.3,3596.2,2.3437]
[1718217687432,2.77912,3598.3,3596.2,2.3437]
[1718217687433,2.77998,3597.2,3596.2,2.3437]
[1718217687834,2.77998,3597.2,3596.3,1.43344514]
[1718217687835,0.03779345,3597.1,3596.3,1.43344514]
[1718217688540,2.78039,3596.7,3596.3,1.43344514]
[1718217688945,0.03750994,3596.6,3596.3,1.43344514]
[1718217689760,2.77964,3597.6,3595.5,2.74]
[1718217689761,7.46,3598.2,3596.5,3.10044514]
[1718217690100,2.77956,3597.7,3596.9,3.10044514]
[1718217690232,2.77992,3597.3,3596.9,1.43344514]
[1718217690877,2.77964,3597.6,3596.9,1.43344514]
[1718217691949,2.77984,3597.4,3596.9,1.43344514]
[1718217695582,3.0,3598.2,3596.9,3.10044514]
[1718217695583,2.77969,3597.6,3596.9,3.10044514]
[1718217695880,2.7794,3597.9,3597.0,1.97704451]
[1718217696046,2.7794,3597.9,3597.1,3.10044514]
[1718217696550,2.77961,3597.7,3597.1,3.10044514]
[1718217696938,2.77976,3597.5,3597.1,1.43344514]
[1718217697337,0.0346062,3597.4,3597.1,1.43344514]
[1718217702186,0.0346062,3597.4,3597.2,1.667]
[1718217702476,0.0346062,3597.4,3597.3,1.43344514]
[1718217702779,2.77976,3597.5,3597.3,1.43344514]
[1718217703283,0.03468436,3597.4,3597.3,1.43344514]
[1718217706679,2.77953,3597.8,3597.3,1.43344514]
[1718217707087,0.03493257,3597.7,3597.3,1.43344514]
[1718217707477,2.77953,3597.8,3597.3,1.43344514]
[1718217707676,0.03486287,3597.6,3597.3,1.43344514]
[1718217707893,0.03480945,3597.5,3597.3,1.43344514]
[1718217708088,2.77953,3597.8,3597.3,1.43344514]
[1718217708406,0.0349228,3597.7,3597.3,1.43344514]
[1718217708600,0.0349228,3597.7,3597.5,1.667]
[1718217708791,7.46,3598.8,3597.6,3.13259719]
[1718217708992,0.43501774,3599.3,3597.7,3.10044514]
[1718217709304,2.668,3599.8,3597.8,0.05517785]
[1718217709503,2.923781,3599.1,3597.9,1.43344514]
[1718217709693,2.77883,3598.7,3598.0,3.10044514]
[1718217710200,0.0355337,3598.6,3598.0,3.10044514]
[1718217711205,2.77911,3598.3,3598.0,1.43344514]
[1718217711595,0.03542756,3598.2,3598.0,1.43344514]
[1718217711999,2.77911,3598.3,3598.0,1.43344514]
[1718217712201,0.0353709,3598.1,3598.0,1.43344514]
[1718217712397,2.77911,3598.3,3596.7,3.537807]
[1718217712699,0.03542756,3598.2,3597.1,1.43344514]
[1718217712901,2.77964,3597.6,3597.1,1.43344514]
[1718217713068,0.03503087,3597.5,3597.1,1.43344514]
[1718217714307,2.7798,3597.4,3597.1,1.43344514]
[1718217714704,0.03491751,3597.3,3597.1,1.43344514]
[1718217714920,2.77993,3597.2,3597.1,1.43344514]
[1718217715205,2.81479082,3597.2,3597.1,1.43344514]
[1718217716180,2.81479082,3597.2,3596.0,7.46]
[1718217716181,0.3163399,3597.2,3596.0,7.46]
[1718217716387,0.3163399,3597.2,3596.1,1.43344514]
[1718217716985,3.0963299,3597.2,3596.1,1.43344514]
[1718217717275,2.78061,3596.4,3596.1,1.43344514]
[1718217717692,0.03435048,3596.3,3596.1,1.43344514]
[1718217718175,0.03435048,3596.3,3596.1,1.74348965]
[1718217719307,0.03435048,3596.3,3596.1,1.43344514]
[1718217719709,2.78034,3596.7,3596.1,1.43344514]
[1718217719872,2.3687,3598.2,3596.6,3.10044514]
[1718217720077,2.3687,3598.2,3596.5,2.4491]
[1718217720078,2.77975,3597.5,3597.0,1.43344514]
[1718217720289,5.1479,3598.2,3596.1,3.0]
[1718217720290,2.78001,3597.1,3596.1,3.0]
[1718217720489,2.78001,3597.1,3596.3,1.43344514]
[1718217720675,2.7798,3597.4,3596.4,2.12678965]
[1718217721011,2.78005,3597.1,3596.4,1.57678965]
[1718217721214,2.78005,3597.1,3596.4,3.10044514]
[1718217722014,2.77974,3597.5,3596.7,3.10044514]
[1718217722509,3.0,3598.0,3596.7,3.10044514]
[1718217722510,2.7795,3597.8,3596.7,3.10044514]
[1718217722688,2.7795,3597.8,3597.0,1.667]
[1718217722888,4.7821,3598.3,3597.1,1.43344514]
[1718217723083,3.77821,3598.2,3597.1,1.43344514]
[1718217723294,2.77988,3597.3,3597.1,1.43344514]
[1718217723688,2.78015,3597.0,3596.3,7.46]
[1718217723885,2.78015,3597.0,3596.4,1.43344514]
[1718217724211,2.7803,3596.8,3596.4,1.43344514]
[1718217725109,2.78048,3596.5,3596.4,1.43344514]
[1718217725774,2.78076,3596.2,3595.7,1.667]
[1718217726153,2.78076,3596.2,3595.8,1.43344514]
[1718217726322,2.78068,3596.3,3595.0,7.46]
[1718217726623,2.78114,3595.7,3595.1,1.43344514]
[1718217726793,2.7809,3596.0,3595.3,1.43344514]
[1718217727187,0.03001856,3595.9,3595.7,1.43344514]
[1718217727387,0.03001856,3595.9,3595.8,3.10044514]
[1718217727587,2.7802,3596.9,3595.8,3.10044514]
[1718217727792,2.78038,3596.7,3596.0,1.667]
[1718217728005,2.78038,3596.7,3596.1,1.74348965]
[1718217728213,0.03135627,3596.6,3596.1,1.79909694]
[1718217728998,0.03135627,3596.6,3596.1,1.48905243]
[1718217729205,0.03135627,3596.6,3596.1,3.15605243]
[1718217729602,0.03135627,3596.6,3596.4,3.10044514]
[1718217729801,2.77966,3597.6,3596.5,3.15604492]
[1718217730015,2.77966,3597.6,3596.9,1.667]
[1718217730218,2.3477,3598.4,3596.9,1.667]
[1718217730219,0.03145283,3597.5,3597.0,1.7990817]
[1718217730390,2.77941,3597.9,3597.0,1.7990817]
[1718217730590,0.03147245,3597.4,3597.2,3.10044514]
[1718217730800,2.77917,3598.2,3597.3,0.05558665]
[1718217731030,2.77892,3598.6,3597.4,3.10044514]
[1718217731248,0.03208744,3598.1,3597.8,3.10044514]
[1718217731394,2.77799,3599.8,3598.2,1.667]
[1718217731909,2.77815,3599.6,3598.8,1.43344514]
[1718217732114,0.03196995,3599.5,3598.9,1.667]
[1718217732299,2.7778,3600.0,3599.0,1.43344514]
[1718217732499,0.31006631,3599.9,3599.0,1.43344514]
[1718217732693,0.03228631,3599.9,3599.0,3.10044514]
[1718217732920,0.03228631,3599.9,3599.1,3.15600478]
[1718217733136,2.77804,3599.7,3599.1,3.10044514]
[1718217733431,2.77819,3599.5,3599.1,1.43344514]
[1718217733820,2.77831,3599.3,3599.1,1.43344514]
[1718217734212,0.03189,3599.2,3599.1,1.43344514]
[1718217734531,2.77803,3599.7,3599.1,1.43344514]
[1718217734741,0.03211648,3599.6,3599.1,1.43344514]
[1718217735409,0.03211648,3599.6,3599.1,3.41048965]
[1718217735736,2.77774,3600.1,3599.1,3.41048965]
[1718217735916,0.03257242,3600.0,3599.1,3.41048965]
[1718217736117,2.77774,3600.1,3599.1,3.41048965]
[1718217736322,2.77774,3600.1,3599.3,3.10044514]
[1718217736541,5.0162,3601.0,3598.6,2.77881]
[1718217736542,2.77738,3600.6,3599.4,3.50254405]
[1718217736836,0.03285539,3600.5,3599.6,3.10044514]
[1718217737004,0.03285539,3600.5,3599.7,0.05554942]
[1718217737204,0.03285539,3600.5,3599.8,1.48899593]
[1718217737603,0.03285539,3600.5,3599.9,3.10044514]
[1718217737802,0.03285539,3600.5,3600.0,0.05554531]
[1718217738101,0.03388912,3600.4,3600.1,1.43344514]
[1718217738318,2.77743,3600.5,3600.1,1.43344514]
[1718217738526,0.03389237,3600.4,3600.1,1.43344514]
[1718217738723,2.77711,3600.9,3600.1,1.43344514]
[1718217738900,2.77732,3600.6,3600.1,1.43344514]
[1718217739233,0.03375332,3600.5,3600.3,1.43344514]
[1718217739619,2.77733,3600.6,3600.3,1.43344514]
[1718217739827,0.03374226,3600.4,3599.2,7.46]
[1718217740025,2.77789,3599.9,3599.3,1.43344514]
[1718217740400,0.03362758,3599.8,3599.3,1.43344514]
[1718217741229,0.03362758,3599.8,3599.4,0.88934451]
[1718217741431,0.03362758,3599.8,3599.5,1.43344514]
[1718217741606,2.77789,3599.9,3599.5,1.43344514]
[1718217742006,2.778,3599.7,3599.5,1.43344514]
[1718217742409,0.03337125,3599.6,3599.5,1.43344514]
[1718217742938,2.77848,3599.1,3598.7,7.46]
[1718217743140,2.77848,3599.1,3598.8,1.43344514]
[1718217743446,2.77889,3598.6,3598.0,7.46]
[1718217743606,2.77889,3598.6,3598.1,1.43344514]
[1718217744446,2.77858,3599.0,3598.4,3.10044514]
[1718217744754,0.0324836,3598.9,3598.5,1.74348965]
[1718217745040,2.77803,3599.7,3598.5,1.43344514]
[1718217745253,3.0,3599.6,3598.5,1.43344514]
[1718217745410,2.77834,3599.3,3598.5,1.43344514]
[1718217745604,2.77855,3599.0,3598.5,1.43344514]
[1718217745802,2.77885,3598.7,3598.5,1.43344514]
[1718217746223,0.03239827,3598.6,3598.0,7.46]
[1718217746423,2.7792,3598.2,3598.1,1.43344514]
[1718217747123,2.81137166,3598.2,3598.1,1.43344514]
[1718217747325,2.7794,3597.9,3597.5,0.31560318]
[1718217747523,2.7794,3597.9,3597.6,1.43344514]
[1718217749336,2.7794,3597.9,3597.6,1.93041893]
[1718217750840,2.77915,3598.3,3597.6,1.93041893]
[1718217751239,0.03152719,3598.2,3597.6,1.93041893]
[1718217751447,0.03152719,3598.2,3597.6,3.59741893]
[1718217751641,2.77882,3598.7,3597.8,1.667]
[1718217751966,2.77882,3598.7,3598.0,1.43344514]
[1718217752118,0.03180263,3598.6,3598.2,1.667]
[1718217752426,2.77869,3598.9,3598.3,1.43344514]
[1718217752620,0.03173295,3598.5,3598.3,1.43344514]
[1718217752822,2.77869,3598.9,3598.3,1.74348965]
[1718217753047,0.0316763,3598.4,3598.3,1.43344514]
[1718217753240,2.77869,3598.9,3598.3,1.43344514]
[1718217753545,0.0316763,3598.4,3598.3,1.43344514]
[1718217753755,0.03181957,3598.4,3598.3,1.43344514]
[1718217753931,2.77869,3598.9,3598.3,1.43344514]
[1718217754130,0.03204615,3598.8,3598.3,1.43344514]
[1718217754628,0.03204615,3598.8,3598.3,1.57678965]
[1718217755852,2.77901,3598.4,3598.3,1.43344514]
[1718217756168,0.03181957,3598.4,3598.3,1.43344514]
[1718217756552,2.77879,3598.7,3598.3,1.43344514]
[1718217756733,0.03181957,3598.4,3598.3,1.43344514]
[1718217757353,2.77851,3599.1,3598.3,1.43344514]
[1718217757569,2.77851,3599.1,3598.3,3.10044514]
[1718217757771,2.77825,3599.4,3598.5,3.10044514]
[1718217758068,7.46,3600.3,3598.7,3.10044514]
[1718217758225,0.03232931,3599.3,3598.7,3.10044514]
[1718217758427,2.77821,3599.5,3598.7,3.41048965]
[1718217758668,2.77855,3599.0,3598.7,1.43344514]
[1718217759022,0.03125609,3598.9,3598.7,1.43344514]
[1718217759462,2.7787,3598.8,3598.7,1.43344514]
[1718217759826,2.8099587,3598.8,3598.0,7.46]
[1718217760031,2.77916,3598.2,3598.1,1.43344514]
[1718217760231,2.77937,3598.0,3597.2,7.46]
[1718217760469,2.77937,3598.0,3597.3,1.43344514]
[1718217760638,0.0317934,3597.9,3597.4,1.667]
[1718217760835,0.0317934,3597.9,3597.5,3.10044514]
[1718217761070,2.77888,3598.6,3597.7,3.10044514]
[1718217761237,2.2619,3599.0,3597.7,1.43344514]
[1718217761238,0.03173673,3597.8,3597.7,1.43344514]
[1718217761438,2.2619,3599.0,3597.7,1.43344514]
[1718217761872,0.03150865,3598.9,3597.7,1.43344514]
[1718217762172,2.77872,3598.8,3597.7,1.43344514]
[1718217762472,2.77943,3597.9,3597.7,1.43344514]
[1718217762971,0.03077595,3597.8,3597.7,1.43344514]
[1718217764072,0.03077595,3597.8,3597.1,4.667]
[1718217764073,0.03077595,3597.8,3597.1,1.667]
[1718217764276,2.77963,3597.6,3597.2,1.43344514]
[1718217764873,0.031456,3597.5,3597.2,1.43344514]
[1718217765176,2.77963,3597.6,3597.2,2.48948965]
[1718217766370,2.77963,3597.6,3597.2,1.43344514]
[1718217766570,0.03140717,3597.5,3597.2,1.43344514]
[1718217766874,2.77978,3597.4,3597.2,1.43344514]
[1718217767375,0.03122217,3597.3,3597.2,1.43344514]
[1718217768271,2.3287,3597.8,3597.2,1.43344514]
[1718217768480,0.03042794,3597.3,3597.2,1.43344514]
[1718217768644,2.3287,3597.8,3597.2,1.43344514]
[1718217768847,0.03038902,3597.3,3597.2,1.43344514]
[1718217769237,2.77975,3597.5,3597.2,1.43344514]
[1718217769436,0.03042468,3597.3,3597.2,1.43344514]
[1718217769642,2.77975,3597.5,3597.2,1.43344514]
[1718217769856,0.03042468,3597.3,3597.2,1.43344514]
[1718217770076,2.77975,3597.5,3597.2,1.43344514]
[1718217770273,0.03035307,3597.3,3597.2,1.43344514]
[1718217770654,2.77975,3597.5,3597.2,1.43344514]
[1718217770853,0.03023581,3597.3,3597.2,1.43344514]
[1718217771062,2.77975,3597.5,3597.2,1.43344514]
[1718217771239,0.03030416,3597.3,3597.2,1.43344514]
[1718217771444,2.77975,3597.5,3597.2,1.43344514]
[1718217771644,0.03030416,3597.3,3597.2,1.43344514]
[1718217771844,2.77975,3597.5,3597.2,1.43344514]
[1718217772047,0.03030416,3597.3,3597.2,1.43344514]
[1718217772246,2.77975,3597.5,3597.2,1.43344514]
[1718217772446,0.02998263,3597.3,3597.2,1.57678965]
[1718217772682,2.77949,3597.8,3597.2,3.24378965]
[1718217772856,0.03002664,3597.3,3597.2,3.24378965]
[1718217773050,2.77927,3598.1,3597.2,3.24378965]
[1718217773455,0.03042337,3598.0,3597.2,3.24378965]
[1718217773668,0.03042337,3598.0,3597.4,1.667]
[1718217773952,0.03042337,3598.0,3597.5,1.43344514]
[1718217774547,0.03042337,3598.0,3597.6,3.10044514]
[1718217774742,2.77902,3598.4,3597.6,3.10044514]
[1718217775066,0.03080504,3598.3,3597.6,3.10044514]
[1718217775267,0.03080504,3598.3,3597.7,1.97704451]
[1718217775446,0.03080504,3598.3,3597.8,1.43344514]
[1718217776152,2.77917,3598.2,3597.8,1.43344514]
[1718217776377,2.77937,3598.0,3597.8,1.43344514]
[1718217776584,0.03085925,3598.1,3597.8,1.43344514]
[1718217776750,2.77914,3598.3,3597.8,1.43344514]
[1718217777266,2.77926,3598.1,3597.8,1.43344514]
[1718217777687,0.03086049,3598.0,3597.8,1.43344514]
[1718217778569,2.77939,3597.9,3597.8,1.43344514]
[1718217778772,2.81019382,3597.9,3597.8,1.43344514]
[1718217780392,2.81019382,3597.9,3597.0,1.667]
[1718217780562,2.81019382,3597.9,3597.1,2.64614514]
[1718217780763,2.81019382,3597.9,3597.2,1.43344514]
[1718217780946,0.03080382,3597.9,3597.5,1.667]
[1718217781146,2.77919,3598.2,3597.6,1.43344514]
[1718217781477,2.77933,3598.0,3597.6,1.43344514]
[1718217781895,0.03079983,3597.9,3597.6,1.43344514]
[1718217782185,2.77947,3597.8,3597.6,1.43344514]
[1718217782609,0.03068648,3597.7,3597.6,1.43344514]
[1718217783086,2.77941,3597.9,3597.6,1.43344514]
[1718217783272,2.77941,3597.9,3597.2,1.667]
[1718217783273,2.77986,3597.3,3596.9,7.46]
[1718217783601,2.77966,3597.6,3597.0,1.43344514]
[1718217783779,2.77966,3597.6,3597.1,0.14334451]
[1718217784101,0.0305243,3597.5,3597.2,1.43344514]
[1718217784458,2.77944,3597.9,3597.2,1.43344514]
[1718217784656,2.77922,3598.2,3597.3,3.10044514]
[1718217784960,0.03069432,3597.8,3597.4,1.99137897]
[1718217785153,2.77896,3598.5,3597.5,1.43344514]
[1718217785368,2.77874,3598.8,3597.9,1.667]
[1718217785552,2.77851,3599.1,3598.1,3.10044514]
[1718217785757,2.77865,3598.9,3598.1,3.10044514]
[1718217786202,0.03126088,3598.8,3598.1,1.43344514]
[1718217786382,2.77898,3598.5,3598.1,1.43344514]
[1718217786784,0.03143619,3598.4,3598.1,1.43344514]
[1718217787309,0.03143619,3598.4,3598.1,3.10044514]
[1718217787597,2.77874,3598.8,3598.2,0.31004451]
[1718217787757,2.77874,3598.8,3598.3,1.43344514]
[1718217788605,2.77849,3599.1,3598.3,3.10044514]
[1718217788799,0.03188853,3599.0,3598.3,3.10044514]
[1718217789991,2.77882,3598.7,3598.3,1.43344514]
[1718217790203,0.03188853,3599.0,3598.3,1.43344514]
[1718217790363,0.03166198,3598.6,3598.3,1.43344514]
[1718217790569,3.0,3599.3,3598.3,1.43344514]
[1718217790902,2.77883,3598.7,3597.9,1.43344514]
[1718217791108,0.81002879,3599.2,3597.9,1.43344514]
[1718217791264,2.77928,3598.1,3597.9,1.43344514]
[1718217791590,2.78002,3597.1,3596.1,3.165]
[1718217791908,0.03072878,3597.0,3596.2,3.75194514]
[1718217792064,2.77979,3597.4,3596.7,1.667]
[1718217792261,2.78003,3597.1,3596.6,1.43344514]
[1718217792792,0.03081707,3597.0,3596.6,1.57678965]
[1718217792992,2.78018,3596.9,3596.6,1.43344514]
[1718217793502,0.03070367,3596.8,3596.6,1.43344514]
[1718217795570,2.78018,3596.9,3596.6,1.43344514]
[1718217795982,2.77993,3597.3,3596.6,1.43344514]
[1718217796178,2.78017,3596.9,3596.6,1.43344514]
[1718217796572,0.03052709,3596.8,3596.6,1.43344514]
[1718217796778,0.03052709,3596.8,3596.7,0.14334451]
[1718217796975,0.03052709,3596.8,3596.7,1.57678965]
[1718217797274,0.03070367,3596.8,3596.7,1.57678965]
[1718217797470,5.27689,3598.2,3596.7,1.43344514]
[1718217797471,2.78001,3597.2,3596.7,1.43344514]
[1718217797805,2.77971,3597.5,3596.8,1.43344514]
[1718217798306,0.03104383,3597.4,3596.8,1.43344514]
[1718217798674,0.03104383,3597.4,3597.0,3.10044514]
[1718217799013,2.77947,3597.8,3597.1,0.53908451]
[1718217799179,2.77984,3597.4,3597.2,1.43344514]
[1718217799584,0.03098714,3597.3,3597.2,1.43344514]
[1718217800708,0.03053461,3597.3,3597.2,1.43344514]
[1718217801091,2.77957,3597.7,3597.2,1.43344514]
[1718217801298,0.03053461,3597.3,3597.2,1.43344514]
[1718217801474,2.77957,3597.7,3597.2,1.57678965]
[1718217801673,7.7809,3598.6,3597.2,1.57678965]
[1718217801674,0.03053461,3597.3,3597.2,1.57678965]
[1718217801995,5.002,3598.6,3597.2,1.57678965]
[1718217801996,2.77938,3598.0,3597.2,1.57678965]
[1718217802392,0.03087468,3597.9,3597.2,1.57678965]
[1718217802697,0.03087468,3597.9,3597.3,0.15767897]
[1718217802873,0.03087468,3597.9,3597.4,1.43344514]
[1718217803075,2.77948,3597.8,3597.4,1.43344514]
[1718217803276,0.03081801,3597.8,3597.4,1.43344514]
[1718217803875,3.0,3598.5,3597.4,1.43344514]
[1718217804075,0.03076133,3597.7,3597.4,1.43344514]
[1718217804276,3.0,3598.5,3597.4,1.43344514]
[1718217804511,2.77954,3597.8,3597.4,1.43344514]
[1718217804909,0.03076133,3597.7,3597.4,1.43344514]
[1718217805287,2.77954,3597.8,3597.4,1.43344514]
[1718217805511,0.03070466,3597.6,3597.4,1.43344514]
[1718217805709,2.77954,3597.8,3597.4,1.43344514]
[1718217807218,3.36391886,3597.7,3596.4,3.63952965]
[1718217807581,2.7802,3596.9,3596.4,3.63952965]
[1718217808108,0.03025114,3596.8,3596.4,3.63952965]
[1718217808477,2.7802,3596.9,3596.4,3.63952965]
[1718217808878,0.03025114,3596.8,3596.4,3.10044514]
[1718217809577,2.78034,3596.7,3596.4,1.43344514]
[1718217810116,0.03012824,3596.6,3596.4,1.43344514]
[1718217810518,2.78048,3596.5,3596.4,1.43344514]
[1718217810716,0.03012824,3596.6,3596.0,5.0]
[1718217810717,2.78078,3596.2,3596.0,5.0]
[1718217810940,3.058858,3596.2,3596.0,6.43344514]
[1718217811221,0.02985414,3596.1,3596.0,5.0]
[1718217812530,3.02985414,3596.1,3596.0,5.0]
[1718217812890,3.02985414,3596.1,3594.5,1.667]
[1718217813224,2.78171,3595.0,3594.6,1.43344514]
[1718217813426,0.02668337,3594.9,3594.6,1.43344514]
[1718217814621,2.78171,3595.0,3594.6,1.43344514]
[1718217815794,2.78139,3595.4,3594.6,1.43344514]
[1718217816001,0.0275723,3595.3,3594.8,3.10044514]
[1718217816309,2.78108,3595.8,3595.0,3.10044514]
[1718217816526,0.02698245,3595.2,3595.1,0.01484512]
[1718217816713,2.78108,3595.8,3595.1,3.11529026]
[1718217816916,2.78108,3595.8,3595.2,1.43344514]
[1718217817104,0.02726617,3595.7,3595.2,1.43344514]
[1718217817620,2.78121,3595.6,3595.2,1.43344514]
[1718217817828,0.02716899,3595.5,3595.2,1.43344514]
[1718217818136,0.02716899,3595.5,3595.2,1.57678965]
[1718217818322,0.02716899,3595.5,3595.2,3.24378965]
[1718217818528,2.78095,3595.9,3595.2,3.24378965]
[1718217819043,0.02733921,3595.8,3595.2,3.24378965]
[1718217819330,0.02733921,3595.8,3595.2,3.10044514]
[1718217819497,2.78116,3595.7,3595.2,1.43344514]
[1718217819702,2.78133,3595.5,3595.2,1.43344514]
[1718217820170,2.7814,3595.3,3594.6,3.0]
[1718217820319,2.78164,3595.0,3594.7,1.43344514]
[1718217820761,0.02682847,3594.9,3594.7,1.43344514]
[1718217821680,2.78179,3594.8,3594.7,1.43344514]
[1718217821980,2.78209,3594.5,3593.3,2.3589]
[1718217822121,2.78209,3594.5,3593.9,3.10044514]
[1718217823038,7.78322,3595.6,3593.9,3.10044514]
[1718217823239,2.78179,3594.9,3594.1,3.10044514]
[1718217823565,2.7819,3594.7,3594.2,0.31004451]
[1718217823811,2.7819,3594.7,3594.3,1.43344514]
[1718217823971,2.7821,3594.4,3594.3,1.43344514]
[1718217824323,2.80854321,3594.4,3594.3,1.43344514]
[1718217824927,0.02644321,3594.4,3594.3,1.43344514]
[1718217825336,2.78188,3594.7,3594.3,1.43344514]
[1718217825831,0.02655677,3594.6,3594.3,1.43344514]
[1718217826772,0.02655677,3594.6,3594.3,1.432193]
[1718217826973,2.78166,3595.0,3594.3,1.432193]
[1718217827130,0.02627371,3594.5,3594.3,1.432193]
[1718217827328,2.78166,3595.0,3594.3,1.5754123]
[1718217827572,2.78142,3595.3,3594.4,0.03832146]
[1718217827834,2.78142,3595.3,3594.6,3.10044514]
[1718217828059,0.02689111,3595.2,3594.6,3.10044514]
[1718217828260,2.78142,3595.3,3594.6,3.10044514]
[1718217828468,0.02689111,3595.2,3594.6,3.66624158]
[1718217828626,2.78142,3595.3,3594.6,3.66624158]
[1718217829030,0.02689111,3595.2,3594.6,3.66624158]
[1718217829275,2.78162,3595.1,3594.6,1.43344514]
[1718217829490,0.0267776,3595.0,3594.6,1.43344514]
[1718217829834,2.78162,3595.1,3594.6,1.43344514]
[1718217830384,2.78137,3595.4,3594.6,1.43344514]
[1718217830752,0.02588271,3595.3,3594.6,1.43344514]
[1718217831397,2.78149,3595.2,3594.6,1.43344514]
[1718217831766,0.02576919,3595.1,3594.6,1.43344514]
[1718217833595,0.02576919,3595.1,3594.6,1.57678965]
[1718217834880,0.02576919,3595.1,3594.7,3.10044514]
[1718217835102,2.78125,3595.6,3594.7,3.10044514]
[1718217835282,0.0256812,3595.0,3594.7,1.43344514]
[1718217835613,2.4659,3596.0,3594.7,1.43344514]
[1718217835614,2.78136,3595.4,3594.7,1.43344514]
[1718217835911,0.02798326,3595.3,3594.7,1.43344514]
[1718217836076,0.02798326,3595.3,3594.9,1.667]
[1718217836280,2.78114,3595.7,3595.0,1.44739629]
[1718217836479,0.02606095,3595.2,3595.0,1.43344514]
[1718217836779,2.78156,3595.1,3595.0,1.96863965]
[1718217836988,2.80718406,3595.1,3595.0,1.43344514]
[1718217837781,2.78178,3594.9,3594.3,1.667]
[1718217838095,0.02575789,3594.8,3594.4,1.43344514]
[1718217838701,0.02575789,3594.8,3594.7,3.10044514]
[1718217839069,2.78127,3595.5,3594.7,3.10044514]
[1718217839268,0.02600224,3595.4,3594.7,3.10044514]
[1718217840488,2.78141,3595.3,3594.7,3.10044514]
[1718217840705,0.02600224,3595.4,3594.7,1.43344514]
[1718217840900,0.02597706,3595.2,3594.7,1.43344514]
[1718217841188,2.78176,3594.9,3594.7,1.43344514]
[1718217841591,0.02586043,3594.8,3594.7,1.43344514]
[1718217841808,0.02586043,3594.8,3594.7,3.10044514]
[1718217841992,2.78107,3595.8,3594.7,3.10044514]